bitfinex-derivatives/quotes_SOLF0:USTF0_20250911
["timestamp","ask_amount","ask_price","bid_price","bid_amount"]
[1757619885644,6.77722452,226.56,226.52,0.03215053]
[1757619885846,3.16064324,226.55,226.52,0.03215053]
[1757619886044,7.35,226.61,226.52,0.03215053]
[1757619886343,7.35,226.59,226.52,0.03215053]
[1757619886545,7.35,226.57,226.52,0.03215053]
[1757619886746,6.77740688,226.56,226.52,0.03215053]
[1757619887046,3.16072806,226.55,226.52,0.03215053]
[1757619887245,7.35,226.61,226.52,0.03215053]
[1757619887445,7.35,226.59,226.52,0.03215053]
[1757619887643,7.35,226.57,226.52,0.03215053]
[1757619887840,7.35,226.55,226.52,0.03215053]
[1757619888045,7.35,226.61,226.52,0.03215053]
[1757619888352,7.35,226.59,226.52,0.03215053]
[1757619888549,7.35,226.57,226.52,0.03215053]
[1757619888841,7.35,226.55,226.52,0.03215053]
[1757619889048,7.35,226.61,226.52,0.03215053]
[1757619889246,7.35,226.59,226.52,0.03215053]
[1757619889545,7.35,226.57,226.52,0.03215053]
[1757619889840,6.78216883,226.56,226.52,0.03215053]
[1757619890046,7.35,226.54,226.52,0.03215053]
[1757619890247,3.43613946,226.62,226.52,0.03215053]
[1757619890448,7.35,226.6,226.52,0.03215053]
[1757619890748,7.35,226.58,226.52,0.03215053]
[1757619891049,7.35,226.56,226.52,0.03215053]
[1757619891249,7.35,226.54,226.52,0.03215053]
[1757619891548,7.35,226.61,226.52,0.03215053]
[1757619891744,7.35,226.59,226.52,0.03215053]
[1757619892043,7.35,226.57,226.52,0.03215053]
[1757619892248,7.35,226.55,226.52,0.03215053]
[1757619892448,7.35,226.53,226.52,0.03215053]
[1757619893653,10.515595,226.53,226.52,0.03215053]
[1757619893853,14.13806279,226.53,226.43,7.2]
[1757619894147,7.35,226.51,226.43,7.2]
[1757619894354,7.35,226.49,226.43,7.2]
[1757619895250,7.35,226.49,226.38,7.36870823]
[1757619895251,7.37997163,226.48,226.39,7.2]
[1757619898260,7.37997163,226.48,226.41,0.03234916]
[1757619898559,7.37997163,226.48,226.42,7.06]
[1757619906076,6.77412732,226.47,226.41,0.03234916]
[1757619906276,7.11,226.46,226.41,0.03234916]
[1757619906965,0.02997163,226.48,226.41,0.03234916]
[1757619907170,13.88144153,226.47,226.41,0.03234916]
[1757619907376,7.11,226.47,226.41,0.03234916]
[1757619911270,0.02997163,226.48,226.42,7.06]
[1757619917874,7.13997163,226.48,226.42,7.06]
[1757619923583,0.02997163,226.48,226.42,7.06]
[1757619928479,4.57993892,226.47,226.41,0.03234916]
[1757619928682,4.57993892,226.46,226.42,7.4]
[1757619928978,4.57993892,226.45,226.41,0.03234916]
[1757619929184,4.57993892,226.44,226.41,0.03234916]
[1757619929378,4.57993892,226.43,226.42,7.4]
[1757619929576,0.02997163,226.48,226.42,7.4]
[1757619935283,4.01094537,226.47,226.42,7.4]
[1757619935481,0.02997163,226.48,226.42,7.4]
[1757619935786,4.01094537,226.47,226.42,7.4]
[1757619935987,0.02997163,226.48,226.42,7.4]
[1757619936188,4.01094537,226.47,226.42,7.4]
[1757619936389,0.02997163,226.48,226.42,7.4]
[1757619936589,4.01156991,226.47,226.42,7.4]
[1757619936791,0.02997163,226.48,226.42,7.4]
[1757619936981,4.01156991,226.47,226.41,0.03234916]
[1757619937281,0.02997163,226.48,226.42,7.4]
[1757619937480,4.01224979,226.47,226.42,7.4]
[1757619937784,0.02997163,226.48,226.42,7.4]
[1757619937984,4.04335376,226.47,226.41,0.03234916]
[1757619938186,0.02997163,226.48,226.42,7.4]
[1757619938386,4.04342437,226.47,226.41,0.03234916]
[1757619938590,0.02997163,226.48,226.42,7.4]
[1757619938790,4.04410616,226.47,226.42,7.4]
[1757619938992,0.02997163,226.48,226.42,7.4]
[1757619939193,4.04410616,226.47,226.41,0.03234916]
[1757619939387,0.02997163,226.48,226.42,7.4]
[1757619939587,4.04404875,226.47,226.41,0.03234916]
[1757619939782,0.02997163,226.48,226.42,7.4]
[1757619939982,4.04404875,226.47,226.43,2.19974788]
[1757619940187,7.35,226.55,226.44,7.4]
[1757619940389,4.04238746,226.54,226.44,7.4]
[1757619940589,7.35,226.55,226.44,7.4]
[1757619941192,7.35,226.61,226.47,7.4]
[1757619941392,6.8139521,226.6,226.48,7.4]
[1757619941687,7.35,226.61,226.48,7.4]
[1757619941891,6.81303517,226.6,226.48,7.4]
[1757619942088,0.0293145,226.57,226.52,0.02987609]
[1757619942293,0.0293145,226.57,226.53,7.4]
[1757619942888,7.3793145,226.57,226.52,0.02987609]
[1757619943986,7.3793145,226.57,226.53,7.4]
[1757619944289,7.3793145,226.57,226.52,0.02987609]
[1757619944499,7.3793145,226.57,226.53,7.4]
[1757619945195,7.3793145,226.57,226.52,0.02987609]
[1757619945389,0.0293145,226.57,226.52,0.02987609]
[1757619945590,7.35,226.56,226.52,0.02987609]
[1757619945995,7.35,226.56,226.53,7.4]
[1757619946501,7.35,226.56,226.52,0.02987609]
[1757619946696,7.35,226.56,226.53,7.4]
[1757619946897,7.35,226.56,226.52,0.02987609]
[1757619947099,7.35,226.56,226.53,7.4]
[1757619947297,7.35,226.56,226.52,0.02987609]
[1757619947498,7.35,226.56,226.53,7.4]
[1757619947696,7.35,226.56,226.52,0.02987609]
[1757619948095,7.35,226.56,226.53,7.4]
[1757619949801,7.35,226.56,226.52,0.02987609]
[1757619950100,7.35,226.56,226.53,7.4]
[1757619952002,0.0293145,226.57,226.53,7.4]
[1757619952299,7.35,226.56,226.53,7.4]
[1757619955704,0.0293145,226.57,226.52,2.22962397]
[1757619956000,7.3793145,226.57,226.53,7.4]
[1757619956396,7.3793145,226.57,226.52,2.22962397]
[1757619956597,7.35,226.56,226.53,7.4]
[1757619956804,7.35,226.56,226.52,2.22962397]
[1757619957003,7.35,226.56,226.53,7.4]
[1757619957303,7.35,226.56,226.52,2.22962397]
[1757619957896,7.35,226.56,226.53,7.39]
[1757619958409,7.35,226.56,226.52,2.22962397]
[1757619958607,7.35,226.56,226.53,7.39]
[1757619958998,7.58,226.56,226.53,7.39]
[1757619959204,7.58,226.56,226.54,7.39]
[1757619959809,7.58,226.56,226.52,0.02987609]
[1757619960112,7.58,226.54,226.44,7.39]
[1757619960305,7.58,226.51,226.44,7.39]
[1757619962614,0.02842739,226.5,226.44,7.39]
[1757619964615,7.58,226.49,226.44,7.39]
[1757619965011,0.02842739,226.5,226.44,7.39]
[1757619965614,7.60842739,226.5,226.43,7.39]
[1757619965814,7.60842739,226.5,226.43,114.95]
[1757619968512,7.60842739,226.5,226.44,7.39]
[1757619970619,0.02842739,226.5,226.41,303.97]
[1757619970913,0.02842739,226.5,226.44,107.52]
[1757619971108,7.58,226.49,226.44,107.52]
[1757619971519,7.58,226.49,226.42,7.39]
[1757619971718,7.58,226.49,226.43,109.71974788]
[1757619971914,7.58,226.49,226.43,2.19974788]
[1757619973419,7.58,226.49,226.42,114.91]
[1757619973719,7.58,226.49,226.43,2.19974788]
[1757619974116,7.58,226.49,226.41,296.58]
[1757619974420,2.22817527,226.5,226.4,107.5]
[1757619974721,7.58,226.49,226.41,7.39]
[1757619975819,7.58,226.49,226.41,114.89]
[1757619976020,7.58,226.49,226.42,7.39]
[1757619979421,7.58,226.49,226.39,9.58974788]
[1757619979615,7.58,226.49,226.4,107.46]
[1757619979816,0.02842739,226.5,226.4,107.46]
[1757619980017,7.58,226.49,226.4,107.46]
[1757619980418,0.02842739,226.5,226.4,107.46]
[1757619980723,7.58,226.49,226.4,107.46]
[1757619980924,0.02842739,226.5,226.4,107.46]
[1757619981825,7.58,226.49,226.4,107.46]
[1757619982226,0.02842739,226.5,226.4,107.46]
[1757619982630,7.58,226.49,226.4,107.46]
[1757619983127,0.02842739,226.5,226.4,107.46]
[1757619983327,7.58,226.49,226.39,7.39]
[1757619983632,2.22817527,226.5,226.39,114.83]
[1757619984031,7.58,226.49,226.39,114.83]
[1757619984228,2.22817527,226.5,226.39,114.83]
[1757619984533,7.58,226.49,226.4,7.39]
[1757619988330,7.4,226.45,226.34,7.05]
[1757619990835,7.4,226.43,226.28,8.86]
[1757619991035,7.4,226.43,226.29,7.05]
[1757620005846,0.02854896,226.38,226.3,7.05]
[1757620006150,7.4,226.46,226.3,7.05]
[1757620011856,0.02821874,226.4,226.3,7.05]
[1757620012051,0.02821874,226.4,226.33,3.43870351]
[1757620012252,0.02821874,226.4,226.34,7.05]
[1757620014257,7.4,226.5,226.37,3.43870351]
[1757620014453,7.4,226.5,226.39,7.05]
[1757620015650,7.4,226.5,226.42,0.03109089]
[1757620015852,7.4,226.5,226.42,7.08109089]
[1757620020663,7.4,226.5,226.42,0.03109089]
[1757620020864,13.1132979,226.58,226.42,0.03109089]
[1757620020865,7.54,226.47,226.42,0.03109089]
[1757620021068,3.14386645,226.46,226.42,0.03109089]
[1757620021265,7.54,226.46,226.34,7.22]
[1757620021464,7.54,226.46,226.42,0.03084439]
[1757620026672,3.43870351,226.48,226.42,0.03084439]
[1757620026869,14.28586652,226.47,226.42,0.03084439]
[1757620027065,3.14500252,226.46,226.42,0.03084439]
[1757620027376,7.54,226.47,226.42,0.03084439]
[1757620027571,7.54,226.45,226.42,7.25084439]
[1757620027870,7.54,226.49,226.42,0.03084439]
[1757620028066,7.54,226.47,226.42,0.03084439]
[1757620028266,7.54,226.49,226.42,0.03084439]
[1757620028467,6.76777972,226.48,226.42,0.03084439]
[1757620028667,7.54,226.49,226.42,0.03084439]
[1757620028870,7.54,226.47,226.42,0.03084439]
[1757620029370,7.54,226.49,226.42,0.03084439]
[1757620029567,7.54,226.47,226.42,0.03084439]
[1757620029767,7.54,226.49,226.42,0.03084439]
[1757620030072,6.76664396,226.48,226.42,0.03084439]
[1757620030272,7.54,226.49,226.42,0.03084439]
[1757620030572,7.54,226.47,226.42,0.03084439]
[1757620030772,21.39870351,226.5,226.42,0.03084439]
[1757620030968,14.30716964,226.49,226.42,0.03084439]
[1757620031162,7.54,226.49,226.42,0.03084439]
[1757620031368,7.54,226.49,226.41,7.22]
[1757620031565,7.54,226.49,226.43,0.02791468]
[1757620031771,7.54,226.49,226.43,7.24791468]
[1757620033375,7.54,226.49,226.43,0.02791468]
[1757620045184,6.77277045,226.48,226.43,0.02791468]
[1757620045483,14.31277045,226.47,226.43,0.02791468]
[1757620045678,7.54,226.45,226.43,0.02791468]
[1757620046880,7.54,226.45,226.33,80.79546391]
[1757620047080,7.54,226.43,226.33,7.22]
[1757620047384,7.54,226.41,226.33,7.22]
[1757620047584,6.77566743,226.4,226.33,7.22]
[1757620047781,7.54,226.41,226.33,7.22]
[1757620047981,6.77664762,226.4,226.33,7.22]
[1757620048180,7.3,226.41,226.33,7.22]
[1757620048380,7.3,226.39,226.33,7.22]
[1757620048585,7.3317725,226.39,226.33,7.22]
[1757620051887,0.0317725,226.39,226.33,7.22]
[1757620056289,7.3,226.36,226.33,7.22]
[1757620056491,7.3,226.36,226.25,296.74]
[1757620056492,9.50276782,226.38,226.27,6.96]
[1757620056688,2.20276782,226.36,226.27,6.96]
[1757620056888,9.50276782,226.36,226.27,6.96]
[1757620057493,0.03046356,226.34,226.27,6.96]
[1757620057697,7.33046356,226.34,226.27,6.96]
[1757620070007,0.03046356,226.34,226.27,9.16276782]
[1757620070206,0.03046356,226.34,226.25,404.08]
[1757620070207,0.03046356,226.34,226.3,2.20276782]
[1757620070405,0.03046356,226.34,226.31,6.96]
[1757620071205,0.03046356,226.34,226.3,2.20276782]
[1757620072106,0.03046356,226.34,226.31,6.96]
[1757620072608,0.03046356,226.34,226.3,2.20276782]
[1757620072912,0.03046356,226.34,226.31,6.96]
[1757620073114,0.03046356,226.34,226.3,2.20276782]
[1757620073511,0.03046356,226.34,226.31,6.96]
[1757620073703,0.03046356,226.34,226.3,2.20276782]
[1757620074818,0.03046356,226.34,226.31,6.96]
[1757620075305,0.03046356,226.34,226.3,2.20276782]
[1757620075710,0.03046356,226.34,226.31,6.96]
[1757620076113,0.03046356,226.34,226.3,2.20276782]
[1757620076314,0.03046356,226.34,226.33,2.20276782]
[1757620076514,0.03046356,226.34,226.33,9.16276782]
[1757620081312,7.16,226.42,226.33,9.16276782]
[1757620081506,7.16,226.5,226.39,2.20276782]
[1757620081707,7.16,226.48,226.39,2.20276782]
[1757620081908,7.16,226.46,226.39,2.20276782]
[1757620082110,7.16,226.44,226.37,6.97]
[1757620082308,7.16,226.44,226.27,82.39730026]
[1757620082309,7.16,226.46,226.35,2.20276782]
[1757620082510,7.16,226.44,226.35,2.20276782]
[1757620082716,7.16,226.44,226.38,0.03353148]
[1757620083118,7.16,226.42,226.38,0.03353148]
[1757620083513,7.16,226.43,226.38,0.03353148]
[1757620083815,3.14490617,226.42,226.38,0.03353148]
[1757620084122,7.16,226.43,226.38,0.03353148]
[1757620084315,3.14486237,226.42,226.38,0.03353148]
[1757620084515,2.20276782,226.44,226.38,0.03353148]
[1757620084516,7.16,226.43,226.38,0.03353148]
[1757620084721,7.16,226.41,226.38,0.03353148]
[1757620085018,7.16,226.43,226.38,0.03353148]
[1757620085219,7.16,226.41,226.38,0.03353148]
[1757620085413,7.16,226.43,226.38,0.03353148]
[1757620085613,7.16,226.41,226.38,0.03353148]
[1757620085811,7.16,226.43,226.38,0.03353148]
[1757620086020,3.14677693,226.42,226.38,0.03353148]
[1757620086316,3.14677693,226.41,226.38,0.03353148]
[1757620086521,2.20276782,226.44,226.38,0.03353148]
[1757620086522,7.16,226.43,226.38,0.03353148]
[1757620086721,6.72073034,226.42,226.38,0.03353148]
[1757620086912,3.14778345,226.41,226.38,0.03353148]
[1757620087115,7.16,226.39,226.38,0.03353148]
[1757620087320,10.30790185,226.39,226.38,0.03353148]
[1757620090422,13.86564782,226.39,226.38,0.03353148]
[1757620094622,13.87124487,226.39,226.38,0.03353148]
[1757620095223,13.87276977,226.39,226.38,0.03353148]
[1757620097228,10.71927087,226.39,226.38,0.03353148]
[1757620097426,13.87285032,226.39,226.38,0.03353148]
[1757620098631,13.87285032,226.39,226.33,6.97]
[1757620098831,7.16,226.37,226.28,6.97]
[1757620099832,0.03337283,226.35,226.28,6.97]
[1757620102627,7.19337283,226.35,226.28,6.97]
[1757620104031,3.15458441,226.34,226.28,6.97]
[1757620104228,10.31458441,226.33,226.26,6.97]
[1757620104431,7.16,226.33,226.26,6.97]
[1757620112141,7.16,226.33,226.2,7.43]
[1757620112336,6.88,226.31,226.2,7.43]
[1757620112544,6.88,226.29,226.2,7.43]
[1757620112751,6.88,226.27,226.2,7.43]
[1757620123366,6.88,226.27,226.21,7.43]
[1757620124161,0.03291041,226.28,226.21,7.43]
[1757620127564,6.91291041,226.28,226.21,7.43]
[1757620127865,0.03291041,226.28,226.21,7.43]
[1757620136270,0.03291041,226.28,226.25,7.43]
[1757620136567,6.88,226.36,226.27,7.43]
[1757620137569,6.88,226.36,226.29,0.03149901]
[1757620137867,6.88,226.36,226.3,7.25]
[1757620139472,300.30243196,226.42,226.3,7.25]
[1757620139770,7.16,226.42,226.3,7.25]
[1757620140361,7.16,226.42,226.34,0.03069907]
[1757620141269,7.16,226.4,226.34,0.03069907]
[1757620141972,7.16,226.4,226.35,7.25]
[1757620142174,7.16,226.4,226.34,0.03069907]
[1757620142470,7.16,226.4,226.35,7.25]
[1757620142669,7.16,226.48,226.35,7.25]
[1757620142865,7.16,226.46,226.35,7.25]
[1757620143167,7.16,226.44,226.35,7.25]
[1757620143469,7.16,226.44,226.38,0.02834914]
[1757620155976,7.16,226.44,226.38,7.27834914]
[1757620157671,7.16,226.48,226.38,7.27834914]
[1757620158077,7.16,226.48,226.38,7.25]
[1757620158279,7.16,226.48,226.41,7.27798691]
[1757620169480,6.99,226.54,226.41,7.27798691]
[1757620169680,6.99,226.5,226.41,7.27798691]
[1757620169970,6.99,226.5,226.41,7.25]
[1757620170176,6.99,226.5,226.44,7.56]
[1757620172471,2.20077174,226.53,226.44,7.56]
[1757620172670,6.99,226.54,226.44,7.56]
[1757620173272,6.99,226.54,226.47,7.59365431]
[1757620181895,5.71209163,226.66,226.47,7.59365431]
[1757620181896,6.99,226.58,226.47,7.59365431]
[1757620182192,6.99,226.58,226.5,7.56]
[1757620182586,6.99,226.58,226.5,7.59363871]
[1757620188497,6.99,226.58,226.5,0.03363871]
[1757620188797,6.99,226.55,226.5,0.03363871]
[1757620189298,6.99,226.55,226.47,7.56]
[1757620189496,6.99,226.55,226.5,0.02874723]
[1757620189696,2.20077174,226.56,226.5,0.02874723]
[1757620190088,6.99,226.55,226.5,0.02874723]
[1757620190492,2.20077174,226.56,226.5,0.02874723]
[1757620190698,6.99,226.55,226.5,0.02874723]
[1757620191394,2.20077174,226.56,226.5,0.02874723]
[1757620191901,6.99,226.55,226.5,0.02874723]
[1757620192201,2.20077174,226.56,226.5,0.02874723]
[1757620192598,6.99,226.55,226.5,0.02874723]
[1757620192894,2.20077174,226.56,226.5,0.02874723]
[1757620193297,6.99,226.55,226.5,0.02874723]
[1757620193794,2.20077174,226.56,226.5,0.02874723]
[1757620194191,6.99,226.55,226.5,0.02874723]
[1757620194990,309.59701217,226.68,226.5,0.02874723]
[1757620195192,6.99,226.55,226.5,0.02874723]
[1757620195400,6.99,226.55,226.48,7.56]
[1757620195602,6.99,226.55,226.5,0.03002972]
[1757620197404,6.99,226.55,226.5,0.03002972]
[1757620199200,2.20077174,226.56,226.5,0.03002972]
[1757620199403,7.36,226.55,226.5,0.03002972]
[1757620200103,7.36,226.55,226.51,7.51]
[1757620200399,2.20077174,226.53,226.5,0.03002972]
[1757620200599,7.36,226.52,226.5,0.03002972]
[1757620200806,7.36,226.52,226.44,7.51]
[1757620201005,2.20077174,226.5,226.44,7.51]
[1757620201199,9.56077174,226.5,226.49,0.03102603]
[1757620201605,7.36,226.52,226.49,0.03102603]
[1757620201801,7.36,226.52,226.49,7.54102603]
[1757620203506,7.36,226.56,226.49,0.03102603]
[1757620209212,3.14652625,226.55,226.49,0.03102603]
[1757620209407,7.36,226.54,226.49,0.03102603]
[1757620212104,9.56077174,226.54,226.49,0.03102603]
[1757620212308,7.36,226.52,226.49,0.03102603]
[1757620213510,4.94362525,226.61,226.49,0.03102603]
[1757620213715,14.47762544,226.6,226.49,7.54102603]
[1757620214019,7.36,226.58,226.49,9.74179777]
[1757620214216,3.15082894,226.57,226.49,9.74179777]
[1757620214417,7.36,226.6,226.49,9.74179777]
[1757620214716,7.36,226.58,226.49,9.74179777]
[1757620214916,3.15218984,226.57,226.49,9.74179777]
[1757620215116,7.36,226.58,226.49,9.71077174]
[1757620215315,3.15258023,226.57,226.51,0.03326672]
[1757620215519,7.36,226.58,226.51,0.03326672]
[1757620215723,3.15258023,226.57,226.51,0.03326672]
[1757620215909,7.36,226.58,226.51,0.03326672]
[1757620216208,3.15258023,226.57,226.51,0.03326672]
[1757620216411,7.36,226.56,226.52,7.51]
[1757620217314,7.36,226.56,226.51,0.03326672]
[1757620217513,7.36,226.56,226.53,7.51]
[1757620218319,7.36,226.56,226.52,2.20077174]
[1757620218620,7.36,226.56,226.53,7.51]
[1757620219819,2.20077174,226.64,226.52,2.20077174]
[1757620220025,7.36,226.62,226.52,9.71077174]
[1757620220322,7.36,226.6,226.52,9.71077174]
[1757620220523,3.15251195,226.59,226.55,0.03245354]
[1757620220723,7.36,226.63,226.55,0.03245354]
[1757620220926,7.36,226.61,226.55,0.03245354]
[1757620221120,7.36,226.59,226.55,0.03245354]
[1757620221320,7.36,226.6,226.55,0.03245354]
[1757620221515,7.36,226.58,226.55,0.03245354]
[1757620221819,7.36,226.6,226.55,0.03245354]
[1757620222020,7.36,226.58,226.55,0.03245354]
[1757620222220,7.36,226.61,226.55,0.03245354]
[1757620222419,7.36,226.59,226.55,0.03245354]
[1757620222619,7.36,226.61,226.55,0.03245354]
[1757620222820,7.36,226.59,226.55,0.03245354]
[1757620223024,7.36,226.61,226.55,0.03245354]
[1757620223219,7.36,226.59,226.55,0.03245354]
[1757620223424,7.36,226.61,226.55,0.03245354]
[1757620223624,7.36,226.59,226.55,0.03245354]
[1757620223824,7.36,226.61,226.55,0.03245354]
[1757620224025,6.71520974,226.6,226.55,0.03245354]
[1757620224221,7.36,226.58,226.55,0.03245354]
[1757620224420,2.20077174,226.62,226.55,0.03245354]
[1757620224626,14.0749723,226.61,226.55,0.03245354]
[1757620224928,7.36,226.59,226.55,0.03245354]
[1757620225122,2.20077174,226.62,226.55,0.03245354]
[1757620225330,14.07489649,226.61,226.55,0.03245354]
[1757620225624,2.20077174,226.62,226.55,0.03245354]
[1757620225625,7.36,226.59,226.55,0.03245354]
[1757620225825,7.36,226.61,226.55,0.03245354]
[1757620226024,2.20077174,226.62,226.55,0.03245354]
[1757620226025,7.36,226.59,226.55,0.03245354]
[1757620226228,7.36,226.61,226.55,0.03245354]
[1757620226426,7.36,226.59,226.55,0.03245354]
[1757620226627,7.36,226.61,226.55,0.03245354]
[1757620228722,7.29,226.65,226.55,0.03245354]
[1757620228916,7.29,226.63,226.55,0.03245354]
[1757620229122,7.29,226.61,226.55,0.03245354]
[1757620229424,7.29,226.59,226.55,0.03245354]
[1757620229634,7.29,226.65,226.55,0.03245354]
[1757620229831,7.29,226.63,226.55,0.03245354]
[1757620230031,7.29,226.61,226.55,0.03245354]
[1757620230330,7.29,226.59,226.55,0.03245354]
[1757620230519,7.29,226.65,226.55,0.03245354]
[1757620230722,7.29,226.63,226.55,0.03245354]
[1757620230922,7.29,226.61,226.55,0.03245354]
[1757620231123,6.71466358,226.6,226.55,0.03245354]
[1757620231320,3.15178969,226.59,226.55,13.33677434]
[1757620231527,3.4349434,226.66,226.55,0.03245354]
[1757620231730,7.29,226.64,226.55,0.03245354]
[1757620231926,7.29,226.62,226.55,0.03245354]
[1757620232131,6.71466287,226.61,226.55,0.03245354]
[1757620232336,7.29,226.59,226.55,7.60245354]
[1757620232632,7.29,226.66,226.55,7.60245354]
[1757620232826,7.29,226.64,226.55,7.60245354]
[1757620233132,7.29,226.62,226.55,7.60245354]
[1757620233334,7.29,226.6,226.55,7.60245354]
[1757620233528,10.44178883,226.59,226.55,7.60245354]
[1757620233734,7.29,226.66,226.55,7.60245354]
[1757620233933,7.29,226.64,226.55,7.60245354]
[1757620234128,7.29,226.62,226.55,7.60245354]
[1757620234329,7.29,226.6,226.55,7.60245354]
[1757620234528,3.15166061,226.59,226.55,7.60245354]
[1757620234733,7.29,226.58,226.55,7.60245354]
[1757620235333,7.29,226.58,226.55,20.74130478]
[1757620235535,4.94362525,226.67,226.55,20.74130478]
[1757620235732,7.29,226.65,226.55,20.74130478]
[1757620235932,7.29,226.63,226.55,20.74130478]
[1757620236230,7.29,226.6,226.55,20.74130478]
[1757620236437,7.29,226.58,226.55,20.74130478]
[1757620237332,4.94362525,226.67,226.55,20.74130478]
[1757620237538,7.29,226.65,226.55,20.74130478]
[1757620237742,7.29,226.63,226.55,20.74130478]
[1757620237932,6.7133193,226.62,226.55,20.74130478]
[1757620238131,3.15116027,226.61,226.55,20.74130478]
[1757620238438,7.29,226.63,226.55,13.17130478]
[1757620238633,6.71995068,226.62,226.56,7.57]
[1757620238831,3.15070105,226.61,226.56,7.57]
[1757620239037,7.29,226.63,226.57,7.57]
[1757620239237,3.15047922,226.62,226.56,7.57]
[1757620239430,7.29,226.63,226.56,7.57]
[1757620239632,3.15032511,226.62,226.56,7.57]
[1757620239831,7.29,226.63,226.56,7.57]
[1757620240035,3.14743566,226.62,226.56,7.57]
[1757620240338,7.29,226.63,226.56,7.57]
[1757620241431,7.29,226.69,226.56,7.57]
[1757620241639,7.29,226.67,226.56,7.57]
[1757620241839,6.71347693,226.66,226.56,7.57]
[1757620242134,3.14625999,226.65,226.59,7.60321428]
[1757620242338,7.29,226.67,226.59,7.60321428]
[1757620242635,3.1451145,226.66,226.59,7.60321428]
[1757620242837,7.29,226.67,226.59,7.60321428]
[1757620243038,7.29,226.74,226.59,7.60321428]
[1757620243241,7.29,226.72,226.59,7.60321428]
[1757620243536,7.29,226.7,226.59,7.57]
[1757620243733,6.71025591,226.69,226.63,0.03265808]
[1757620243938,10.43420269,226.68,226.64,7.57]
[1757620244140,7.29,226.68,226.64,7.57]
[1757620244529,23.75856865,226.76,226.64,7.59920751]
[1757620244735,17.53497481,226.75,226.64,7.59920751]
[1757620244934,7.29,226.73,226.64,7.59920751]
[1757620245130,7.29,226.71,226.64,7.59920751]
[1757620245334,6.70653129,226.7,226.64,7.59920751]
[1757620245534,7.29,226.71,226.64,7.59920751]
[1757620245535,7.29,226.68,226.64,7.59920751]
[1757620246041,7.29,226.75,226.64,7.59920751]
[1757620246242,7.29,226.73,226.64,7.59920751]
[1757620246430,7.29,226.71,226.64,7.59920751]
[1757620246636,6.70423255,226.7,226.64,7.59920751]
[1757620246835,7.29,226.68,226.64,7.59920751]
[1757620247035,7.29,226.68,226.65,7.57]
[1757620249039,7.29,226.75,226.65,7.57]
[1757620249341,7.29,226.73,226.65,7.57]
[1757620249644,7.29,226.71,226.65,7.57]
[1757620250434,6.69705614,226.7,226.64,0.02920751]
[1757620250638,13.98705614,226.69,226.64,0.02920751]
[1757620250840,7.29,226.67,226.64,0.02920751]
[1757620251040,7.29,226.72,226.64,0.02920751]
[1757620251245,7.29,226.7,226.64,0.02920751]
[1757620251440,3.13859867,226.69,226.64,0.02920751]
[1757620251642,10.42859867,226.68,226.64,0.02920751]
[1757620251848,7.29,226.68,226.64,0.02920751]
[1757620252644,7.29,226.72,226.64,0.02920751]
[1757620252840,7.29,226.7,226.64,0.02920751]
[1757620253039,7.29,226.68,226.64,0.02920751]
[1757620253237,7.29,226.72,226.64,0.02920751]
[1757620253440,7.29,226.7,226.64,0.02920751]
[1757620253642,7.29,226.68,226.64,0.02920751]
[1757620254045,7.29,226.72,226.64,0.02920751]
[1757620254246,7.29,226.7,226.64,0.02920751]
[1757620254444,7.29,226.68,226.64,0.02920751]
[1757620258350,7.39,226.72,226.64,0.02920751]
[1757620258647,7.39,226.7,226.64,0.02920751]